fUSD/lending_fUSD_20260217
["ID","MTS","AMOUNT","RATE_DAILY","PERIOD"]
[405806351,1771329042624,-721.12765535,0.00016633,2]
[405806352,1771329042643,-174.61919141,0.00016633,2]
[405806353,1771329042652,-250.0,0.00016633,2]
[405806354,1771329042662,-250.0,0.00016633,2]
[405806355,1771329042671,-253.83621088,0.00016633,2]
[405806356,1771329042680,-250.0,0.00016633,2]
[405806357,1771329042689,-209.40437684,0.00016633,2]
[405806358,1771329042704,-250.0,0.00016633,2]
[405806359,1771329042724,-250.0,0.00016633,2]
[405806360,1771329042733,-250.0,0.00016633,2]
[405806361,1771329042743,-250.0,0.00016633,2]
[405806362,1771329042752,-302.70619241,0.00016633,2]
[405806363,1771329042762,-743.50770149,0.00016633,2]
[405806364,1771329042773,-209.40437684,0.00016633,2]
[405806365,1771329042784,-151.0,0.00016633,2]
[405806366,1771329042794,-250.0,0.00016633,2]
[405806367,1771329042803,-250.0,0.00016633,2]
[405806368,1771329042813,-250.0,0.00016633,2]
[405806369,1771329042822,-250.0,0.00016633,2]
[405806370,1771329042832,-250.0,0.00016633,2]
[405806371,1771329042843,-250.0,0.00016633,2]
[405806372,1771329042855,-250.0,0.00016633,2]
[405806373,1771329042865,-250.0,0.00016633,2]
[405806374,1771329042874,-250.0,0.00016633,2]
[405806375,1771329042883,-250.0,0.00016633,2]
[405806376,1771329042892,-250.0,0.00016633,2]
[405806377,1771329042902,-250.0,0.00016633,2]
[405806378,1771329042912,-250.0,0.00016633,2]
[405806379,1771329042921,-162.380719,0.00016633,2]
[405806380,1771329042931,-250.0,0.00016633,2]
[405806381,1771329042940,-250.0,0.00016633,2]
[405806382,1771329042949,-250.0,0.00016633,2]
[405806383,1771329042959,-299.40346672,0.00016633,2]
[405806384,1771329042969,-250.0,0.00016633,2]
[405806385,1771329042981,-693.3919763,0.00016633,2]
[405806386,1771329042991,-291.48891739,0.00016633,2]
[405806387,1771329043000,-9905.5980765,0.00016688,2]
[405806388,1771329043010,-151.0,0.00016688,2]
[405806389,1771329043019,-719.04747942,0.00016688,2]
[405806390,1771329043029,-159.42,0.00016712,2]
[405806391,1771329043038,-156.57732778,0.00016733,2]
[405806392,1771329043048,-10272.10520533,0.00016743,2]
[405806393,1771329043058,-151.0,0.00016743,2]
[405806394,1771329043067,-745.65223616,0.00016743,2]
[405806395,1771329043077,-2125.36664557,0.00016798,2]
[405806396,1771329043087,-151.0,0.00016798,2]
[405806397,1771329043096,-773.2413689,0.00016798,2]
[405806398,1771329043106,-151.0,0.00016853,2]
[405806399,1771329043115,-801.85129955,0.00016853,2]
[405806400,1771329043124,-500.0,0.000169,3]
[405806401,1771329043134,-555.49,0.000169,5]
[405806402,1771329043144,-151.0,0.00016908,2]
[405806403,1771329043154,-831.51979763,0.00016908,2]
[405806404,1771329043164,-151.0,0.00016963,2]
[405806405,1771329043174,-862.28603014,0.00016963,2]
[405806406,1771329043183,-500.0,0.00017,5]
[405806407,1771329043197,-173.57638878,0.00017,7]
[405806408,1771329043214,-300.0,0.00017,2]
[405806409,1771329043224,-3701.0,0.00017,2]
[405806410,1771329043234,-160.0,0.00017,7]
[405806411,1771329043243,-151.0,0.00017018,2]
[405806412,1771329043252,-894.19061326,0.00017018,2]
[405806413,1771329043262,-151.0,0.00017073,2]
[405806414,1771329043275,-927.27566595,0.00017073,2]
[405806415,1771329043284,-350.0,0.00017103,2]
[405806417,1771329043294,-151.0,0.00017128,2]
[405806418,1771329043303,-961.58486559,0.00017128,2]
[405806419,1771329043312,-527.32864652,0.00017181,2]
[405806420,1771329043322,-200.0,0.00017181,2]
[405806421,1771329043331,-184.18279927,0.00017181,2]
[405806422,1771329043341,-217.15233878,0.00017181,2]
[405806423,1771329043354,-771.01748645,0.00017181,2]
[405806424,1771329043363,-204.10289238,0.00017181,2]
[405806425,1771329043374,-151.0,0.00017183,2]
[405806426,1771329043384,-997.16350561,0.00017183,2]
[405806427,1771329043393,-327.96973244,0.000172,2]
[405806428,1771329043404,-500.0,0.000172,3]
[405806429,1771329043414,-151.0,0.00017238,2]
[405806430,1771329043424,-151.0,0.00017293,2]
[405806431,1771329043433,-500.0,0.000173,3]
[405806432,1771329043443,-500.0,0.000173,5]
[405806433,1771329043453,-151.0,0.00017348,2]
[405806434,1771329043463,-267.05598539,0.00017403,2]
[405806435,1771329043472,-619.543,0.00017449,2]
[405806436,1771329043482,-1164.0,0.00017449,2]
[405806437,1771329043493,-3519.74,0.00017449,2]
[405806438,1771329043502,-150.248,0.00017449,2]
[405806439,1771329043512,-1302.253,0.00017449,2]
[405806440,1771329043522,-919.0,0.00017449,2]
[405806441,1771329043531,-423.132,0.00017449,2]
[405806442,1771329043541,-2000.0,0.00017452,7]
[405806443,1771329043551,-350.0,0.00017551,2]
[405806444,1771329043561,-350.0,0.00017622,2]
[405806445,1771329043571,-1109.30857837,0.0001764,2]
[405806446,1771329043583,-1010.18971058,0.0001764,2]
[405806447,1771329043593,-1124.74398875,0.0001764,2]
[405806448,1771329043602,-1068.98602172,0.0001764,2]
[405806449,1771329043612,-1084.15846985,0.0001764,2]
[405806450,1771329043621,-1092.81051318,0.0001764,2]
[405806451,1771329043631,-1030.07460281,0.0001764,2]
[405806452,1771329043642,-1123.48644042,0.0001764,2]
[405806453,1771329043653,-1122.30474284,0.0001764,2]
[405806454,1771329043663,-1007.26445095,0.0001764,2]
[405806455,1771329043673,-1069.70802758,0.0001764,2]
[405806456,1771329043683,-1128.94658895,0.0001764,2]
[405806457,1771329043692,-1133.70432616,0.0001764,2]
[405806458,1771329043702,-1120.15474246,0.0001764,2]
[405806459,1771329043711,-1115.25872394,0.0001764,2]
[405806460,1771329043721,-1035.38636496,0.0001764,2]
[405806461,1771329043730,-1027.04365307,0.0001764,2]
[405806462,1771329043744,-1111.72078445,0.0001764,2]
[405806463,1771329043754,-1098.5218804,0.0001764,2]
[405806464,1771329043763,-1091.93377493,0.0001764,2]
[405806465,1771329043778,-1114.54619231,0.0001764,2]
[405806466,1771329043788,-1018.3135133,0.0001764,2]
[405806467,1771329043798,-6001.36620396,0.0001764,2]
[405806468,1771329043808,-350.0,0.00017653,2]
[405806469,1771329043819,-1088.37215301,0.00017708,2]
[405806470,1771329043829,-500.0,0.00017726,7]
[405806471,1771329043840,-225.18697532,0.00017729,2]
[405806472,1771329043850,-495.13183978,0.00017729,2]
[405806473,1771329043860,-2004.41635969,0.0001773,2]
[405806474,1771329043869,-550.98049433,0.0001779,7]
[405806475,1771329043879,-350.0,0.00017803,2]
[405806476,1771329043888,-444.64,0.00017808,2]
[405806477,1771329043898,-800.0,0.00017808,2]
[405806478,1771329043909,-250.0,0.00017808,20]
[405806479,1771329043919,-250.0,0.00017808,20]
[405806480,1771329043928,-250.0,0.00017808,20]
[405806481,1771329043938,-250.0,0.00017808,20]
[405806482,1771329043948,-250.0,0.00017808,20]
[405806483,1771329043958,-250.0,0.00017808,20]
[405806484,1771329043968,-250.0,0.00017808,20]
[405806485,1771329043978,-250.0,0.00017808,20]
[405806486,1771329043990,-250.0,0.00017808,20]
[405806487,1771329044000,-250.0,0.00017808,20]
[405806488,1771329044010,-250.0,0.00017808,20]
[405806489,1771329044020,-250.0,0.00017808,20]
[405806490,1771329044030,-250.0,0.00017808,20]
[405806491,1771329044039,-250.0,0.00017808,20]
[405806492,1771329044049,-250.0,0.00017808,20]
[405806493,1771329044059,-211.316222,0.00017808,20]
[405806494,1771329044069,-500.0,0.00017855,2]
[405806496,1771329044078,-200.0,0.00017855,2]
[405806497,1771329044087,-500.0,0.00017856,2]
[405806498,1771329044097,-500.0,0.00017856,2]
[405806499,1771329044106,-200.0,0.00017856,2]
[405806500,1771329044116,-200.0,0.00017856,2]
[405806501,1771329044125,-234.9,0.00017894,2]
[405806502,1771329044139,-1051.12862644,0.000179,2]
[405806503,1771329044150,-6001.86234485,0.000179,2]
[405806504,1771329044160,-9205.40634509,0.000179,2]
[405806505,1771329044169,-504.09468333,0.00017973,2]
[405806506,1771329044179,-509.85751715,0.00017973,2]
[405806507,1771329044189,-573.45760824,0.00017973,2]
[405806508,1771329044198,-500.0,0.00017973,2]
[405806509,1771329044208,-616.27940406,0.00017973,2]
[405806510,1771329044217,-500.0,0.00017973,2]
[405806511,1771329044227,-500.0,0.00017973,2]
[405806512,1771329044237,-436.04334629,0.00017973,2]
[405806513,1771329044247,-501.35605949,0.00017973,2]
[405806514,1771329044257,-503.2366262,0.00017973,2]
[405806515,1771329044266,-500.99019732,0.00017973,2]
[405806516,1771329044276,-502.80271569,0.00017973,2]
[405806518,1771329044285,-501.59728131,0.00017973,2]
[405806519,1771329044295,-500.0,0.00017973,2]
[405806521,1771329044304,-500.0,0.00017973,2]
[405806522,1771329044314,-310.16973746,0.00017973,2]
[405806523,1771329044323,-502.37992604,0.00017973,2]
[405806524,1771329044332,-163.14629325,0.00017973,2]
[405806525,1771329044342,-588.14229004,0.00017973,2]
[405806526,1771329044352,-500.0,0.00017973,2]
[405806527,1771329044361,-194.4116551,0.00017973,2]
[405806528,1771329044374,-504.49684223,0.00017973,2]
[405806529,1771329044383,-500.0,0.00017973,2]
[405806530,1771329044393,-500.0,0.00017973,2]
[405806531,1771329044403,-500.0,0.00017973,2]
[405806532,1771329044414,-501.06962982,0.00017973,2]
[405806533,1771329044425,-500.67013055,0.00017973,2]
[405806534,1771329044435,-501.78719611,0.00017973,2]
[405806535,1771329044445,-500.60659592,0.00017973,2]
[405806536,1771329044455,-500.0,0.00017973,2]
[405806537,1771329044465,-504.66274009,0.00017973,2]
[405806538,1771329044474,-168.45138887,0.00017973,2]
[405806539,1771329044484,-947.1253165,0.00017982,2]
[405806540,1771329044494,-665.75189293,0.0001799,2]
[405806541,1771329044504,-2438.4752338,0.00017997,2]
[405806542,1771329044514,-707273.8824229,0.00017997,2]
[405806543,1771329044527,-17240.9302126,0.00017997,2]
[405806544,1771329044537,-46588.8741608,0.00017997,2]
[405806545,1771329044547,-5746.9767376,0.00017997,2]
[405806546,1771329044556,-151.0,0.00017997,2]
[405806547,1771329044566,-300.0,0.00017999,2]
[405806548,1771329044576,-666.0,0.00017999,2]
[405806549,1771329044585,-666.0,0.00017999,2]
[405806550,1771329044595,-300.0,0.00017999,2]
[405806551,1771329044605,-300.0,0.00017999,2]
[405806552,1771329044615,-300.0,0.00017999,2]
[405806553,1771329044624,-666.0,0.00017999,2]
[405806554,1771329044633,-300.0,0.00017999,2]
[405806555,1771329044643,-300.0,0.00017999,2]
[405806556,1771329044654,-666.0,0.00017999,2]
[405806557,1771329044663,-150.0,0.00017999,2]
[405806558,1771329044673,-150.0,0.00017999,2]
[405806559,1771329044682,-269.76817122,0.00017999,2]
[405806560,1771329044692,-28610.11146738,0.00017999,2]
[405806561,1771329044701,-2575070.53259381,0.00018,2]
[405806562,1771329044711,-150.0,0.00018,2]
[405806563,1771329044720,-2035.41018249,0.00018,2]
[405806564,1771329044729,-150.0,0.00018,2]
[405806565,1771329044739,-3080.85541333,0.00018,2]
[405806566,1771329044748,-500.0,0.00018,2]
[405806567,1771329044758,-500.0,0.00018,2]
[405806568,1771329044767,-500.0,0.00018,2]
[405806569,1771329044779,-564.0,0.00018,2]
[405806570,1771329044788,-330.7712,0.00018,2]
[405806571,1771329044798,-151.0,0.00018,2]
[405806572,1771329044807,-500.0,0.00018,2]
[405806573,1771329044818,-200.0,0.00018,2]
[405806574,1771329044828,-9412991.55822823,0.00018,2]
[405806575,1771329044969,-488.52303721,0.00011099,2]
[405806576,1771329044981,-2279.10000001,0.00011099,2]
[405806577,1771329044993,-1171.00414154,0.00011099,2]
[405806578,1771329045004,-501.85990676,0.00011099,2]
[405806579,1771329045150,-1226.99980761,0.00011099,2]
[405806580,1771329045181,-2492.81268241,0.00011099,2]
[405806581,1771329045200,-161.0090462,0.00011099,2]
[405806582,1771329045210,-546.87230781,0.00017449,2]
[405806587,1771329048175,-288.44039886,0.00011099,2]
[405806588,1771329048191,-8032.86822279,0.00011099,2]
[405806589,1771329048201,-1905.12769219,0.00017449,2]
[405806590,1771329048211,-3574.92585851,0.00018,2]
[405806591,1771329071413,7700.01,7.718e-05,2]
[405806592,1771329071438,10000.01,7.718e-05,2]
[405806593,1771329071462,10000.01,7.718e-05,2]
[405806594,1771329071486,10000.01,7.718e-05,2]
[405806595,1771329071512,10000.01,7.718e-05,2]
[405806596,1771329071536,10000.01,7.718e-05,2]
[405806597,1771329071560,10000.01,7.718e-05,2]
[405806598,1771329071584,10000.01,7.718e-05,2]
[405806599,1771329071608,10000.01,7.718e-05,2]
[405806600,1771329092949,4212.415,7.564e-05,2]
[405806601,1771329092978,386.833,7.564e-05,2]
[405806602,1771329121310,300.0,7.717e-05,2]
[405806603,1771329151668,209.48459087,7.717e-05,2]
[405806604,1771329154363,500.0,7.717e-05,2]
[405806605,1771329154408,500.0,7.717e-05,2]
[405806606,1771329154454,500.0,7.717e-05,2]
[405806607,1771329154512,500.0,7.717e-05,2]
[405806608,1771329154557,500.0,7.717e-05,2]
[405806609,1771329154603,500.0,7.717e-05,2]
[405806610,1771329154648,500.0,7.717e-05,2]
[405806611,1771329154692,500.0,7.717e-05,2]
[405806612,1771329154741,500.0,7.717e-05,2]
[405806613,1771329154785,391.27740913,7.717e-05,2]
[405806614,1771329154820,108.72259087,7.717e-05,2]
[405806615,1771329154865,500.0,7.717e-05,2]
[405806616,1771329154931,500.0,7.717e-05,2]
[405806617,1771329154984,500.0,7.717e-05,2]
[405806618,1771329155035,500.0,7.717e-05,2]
[405806619,1771329155094,500.0,7.717e-05,2]
[405806620,1771329155140,500.0,7.717e-05,2]
[405806621,1771329155190,500.0,7.717e-05,2]
[405806622,1771329155235,155.56523637,7.717e-05,2]
[405806623,1771329155285,500.0,7.717e-05,2]
[405806624,1771329155340,500.0,7.717e-05,2]
[405806625,1771329155390,500.0,7.717e-05,2]
[405806626,1771329155435,500.0,7.717e-05,2]
[405806627,1771329155492,500.0,7.717e-05,2]
[405806628,1771329155542,500.0,7.717e-05,2]
[405806629,1771329155589,500.0,7.717e-05,2]
[405806630,1771329155650,500.0,7.717e-05,2]
[405806631,1771329155699,500.0,7.717e-05,2]
[405806632,1771329155763,500.0,7.717e-05,2]
[405806633,1771329181402,300.0,7.717e-05,2]
[405806634,1771329185394,500.0,7.717e-05,2]
[405806635,1771329185440,435.72217276,7.717e-05,2]
[405806636,1771329185462,174.10031293,7.717e-05,2]
[405806637,1771329198498,500.0,7.717e-05,2]
[405806638,1771329199310,361.67462856,7.717e-05,2]
[405806639,1771329241306,300.0,7.717e-05,2]
[405806640,1771329243479,150.0,7.717e-05,2]
[405806641,1771329301303,300.0,7.717e-05,2]
[405806642,1771329301448,1200.0,7.717e-05,2]
[405806643,1771329304070,500.0,7.717e-05,2]
[405806644,1771329361408,300.0,7.717e-05,2]
[405806645,1771329370251,7250.01,7.618e-05,2]
[405806646,1771329370273,10000.01,7.618e-05,2]
[405806647,1771329370294,10000.01,7.618e-05,2]
[405806648,1771329370316,10000.01,7.618e-05,2]
[405806649,1771329370338,10000.01,7.618e-05,2]
[405806650,1771329370360,10000.01,7.618e-05,2]
[405806651,1771329370384,10000.01,7.618e-05,2]
[405806655,1771329570678,268.67130523,7.5e-05,3]
[405806656,1771329570727,322.07339258,7.5e-05,3]
[405806657,1771329570782,339.87408837,7.5e-05,3]
[405806658,1771329570840,357.67478416,7.5e-05,3]
[405806659,1771329692929,3369.932,7.466e-05,2]
[405806660,1771329692968,309.467,7.466e-05,2]
[405806667,1771329721283,300.0,7.517e-05,2]
[405806672,1771329750753,150.0,0.00011233,120]
[405806673,1771329761326,1020.611,7.4e-05,2]
[405806674,1771329761349,112.02446994,7.4e-05,2]
[405806675,1771329761381,1574.82143141,7.4e-05,2]
[405806676,1771329761429,1722.2167519,7.4e-05,2]
[405806677,1771329761487,1590.94734675,7.4e-05,2]
[405806678,1771329761508,278.66472565,7.4e-05,2]
[405806681,1771329765112,373.00894746,7.517e-05,2]
[405806682,1771329765641,500.0,7.517e-05,2]
[405806683,1771329765688,409.60006193,7.517e-05,2]
[405806684,1771329765729,500.0,7.517e-05,2]
[405806685,1771329765773,500.0,7.517e-05,2]
[405806686,1771329765815,500.0,7.517e-05,2]
[405806687,1771329765853,500.0,7.517e-05,2]
[405806688,1771329765894,500.0,7.517e-05,2]
[405806689,1771329765940,500.0,7.517e-05,2]
[405806690,1771329765977,438.73626496,7.517e-05,2]
[405806691,1771329766005,61.26373504,7.517e-05,2]
[405806693,1771329782140,300.0,7.517e-05,2]
[405806694,1771329783296,150.0,7.517e-05,2]
[405806696,1771329828489,500.0,7.512e-05,2]
[405806697,1771329869247,3176.59624034,7.418e-05,2]
[405806698,1771329901397,300.0,7.517e-05,2]
[405806699,1771329901748,512.15002462,7.517e-05,2]
[405806700,1771329901771,687.84997538,7.517e-05,2]
[405806701,1771329908133,152.0,7.5e-05,3]
[405806702,1771329939702,983.50660364,7.4e-05,2]
[405806703,1771329939742,1358.58457528,7.4e-05,2]
[405806704,1771329939784,1483.61056582,7.4e-05,2]
[405806705,1771329939835,486.45827988,7.4e-05,2]
[405806706,1771329939858,1122.17827649,7.4e-05,2]
[405806711,1771329963348,150.0,7.517e-05,2]
[405806712,1771329965522,500.0,3.97e-06,30]
[405806713,1771329965596,500.0,3.97e-06,30]
[405806714,1771329966052,500.0,3.97e-06,30]
[405806715,1771329966117,500.0,3.97e-06,30]
[405806716,1771329966180,357.70260338,7.517e-05,2]
[405806717,1771329967261,152.0,7.5e-05,3]
[405806718,1771329987205,500.0,7.517e-05,2]
[405806719,1771329987243,500.0,7.517e-05,2]
[405806720,1771329987276,500.0,7.517e-05,2]
[405806721,1771329987309,500.0,7.517e-05,2]
[405806722,1771329987342,500.0,7.517e-05,2]
[405806723,1771329987376,500.0,7.517e-05,2]
[405806724,1771329987439,370.12912013,7.517e-05,2]
[405806725,1771329987477,129.87087987,7.517e-05,2]
[405806726,1771329987532,500.0,7.517e-05,2]
[405806727,1771329987567,500.0,7.517e-05,2]
[405806728,1771329987600,500.0,7.517e-05,2]
[405806729,1771329987633,500.0,7.517e-05,2]
[405806730,1771329987668,500.0,7.517e-05,2]
[405806731,1771329987707,500.0,7.517e-05,2]
[405806732,1771329987741,500.0,7.517e-05,2]
[405806733,1771329987778,500.0,7.517e-05,2]
[405806734,1771329987811,500.0,7.517e-05,2]
[405806735,1771329987848,500.0,7.517e-05,2]
[405806736,1771329987884,500.0,7.517e-05,2]
[405806737,1771329987920,500.0,7.517e-05,2]
[405806738,1771329987955,500.0,7.517e-05,2]
[405806739,1771329987991,500.0,7.517e-05,2]
[405806740,1771329988027,500.0,7.517e-05,2]
[405806741,1771329988070,500.0,7.517e-05,2]
[405806742,1771329988103,500.0,7.517e-05,2]
[405806743,1771329988135,358.98825922,7.517e-05,2]
[405806744,1771329988171,500.0,7.517e-05,2]
[405806745,1771329988220,500.0,7.517e-05,2]
[405806746,1771329988252,11.15086091,7.517e-05,2]
[405806747,1771329988278,488.84913909,7.517e-05,2]
[405806748,1771329988314,500.0,7.517e-05,2]
[405806749,1771329988347,500.0,7.517e-05,2]
[405806750,1771329988381,500.0,7.517e-05,2]
[405806751,1771329988428,500.0,7.517e-05,2]
[405806752,1771329988460,500.0,7.517e-05,2]
[405806753,1771329988493,500.0,7.517e-05,2]
[405806754,1771329988526,500.0,7.517e-05,2]
[405806755,1771329988571,500.0,7.517e-05,2]
[405806756,1771329988608,500.0,7.517e-05,2]
[405806757,1771329988650,500.0,7.517e-05,2]
[405806758,1771329988684,500.0,7.517e-05,2]
[405806759,1771329988717,500.0,7.517e-05,2]
[405806760,1771329988755,500.0,7.517e-05,2]
[405806761,1771329988793,500.0,7.517e-05,2]
[405806762,1771329988827,500.0,7.517e-05,2]
[405806763,1771329988886,500.0,7.517e-05,2]
[405806764,1771329988922,500.0,7.517e-05,2]
[405806765,1771329988972,500.0,7.517e-05,2]
[405806766,1771329989010,500.0,7.517e-05,2]
[405806767,1771329989046,11.16086091,7.517e-05,2]
[405806768,1771329989074,488.83913909,7.517e-05,2]
[405806769,1771329989112,500.0,7.517e-05,2]
[405806770,1771329989154,500.0,7.517e-05,2]
[405806771,1771329989213,500.0,7.517e-05,2]
[405806772,1771329989287,500.0,7.517e-05,2]
[405806773,1771329989395,500.0,7.517e-05,2]
[405806774,1771329989464,500.0,7.517e-05,2]
[405806775,1771329994178,-6218.7307939,7.518e-05,2]
[405806776,1771329994296,-10000.01,7.518e-05,2]
[405806777,1771329994403,-10000.01,7.518e-05,2]
[405806778,1771329994542,-10000.01,7.518e-05,2]
[405806779,1771329994799,-10000.01,7.518e-05,2]
[405806780,1771329995038,-10000.01,7.518e-05,2]
[405806781,1771329995180,-10000.01,7.518e-05,2]
[405806782,1771329995389,-10000.01,7.518e-05,2]
[405806783,1771329995523,-10000.01,7.518e-05,2]
[405806784,1771329995637,-10000.01,7.518e-05,2]
[405806785,1771329996640,-10000.01,7.518e-05,2]
[405806786,1771329996753,-10000.01,7.518e-05,2]
[405806787,1771329996856,-10000.01,7.518e-05,2]
[405806788,1771329997122,-10000.01,7.518e-05,2]
[405806789,1771329998052,-10000.01,7.518e-05,2]
[405806790,1771329998068,-10000.01,7.518e-05,2]
[405806791,1771329998081,-10000.01,7.518e-05,2]
[405806792,1771329998094,-10000.01,7.518e-05,2]
[405806793,1771329998109,-10000.01,7.518e-05,2]
[405806794,1771329998122,-10000.01,7.518e-05,2]
[405806795,1771329998151,-10000.01,7.518e-05,2]
[405806796,1771329998172,-10000.01,7.518e-05,2]
[405806797,1771330007172,561.25378189,7.517e-05,2]
[405806798,1771330007207,561.25378189,7.517e-05,2]
[405806799,1771330007241,561.25378189,7.517e-05,2]
[405806800,1771330007273,561.25378189,7.517e-05,2]
[405806801,1771330007306,561.25378189,7.517e-05,2]
[405806802,1771330007342,561.25378189,7.517e-05,2]
[405806803,1771330007375,561.25378189,7.517e-05,2]
[405806804,1771330007408,561.25378189,7.517e-05,2]
[405806805,1771330007442,509.97974488,7.517e-05,2]
[405806806,1771330007465,51.27403701,7.517e-05,2]
[405806807,1771330007499,561.25378189,7.517e-05,2]
[405806808,1771330007532,561.25378189,7.517e-05,2]
[405806809,1771330007566,561.25378189,7.517e-05,2]
[405806810,1771330007620,561.25378189,7.517e-05,2]
[405806811,1771330007656,561.25378189,7.517e-05,2]
[405806812,1771330007698,561.25378189,7.517e-05,2]
[405806813,1771330007733,561.25378189,7.517e-05,2]
[405806814,1771330007773,561.25378189,7.517e-05,2]
[405806815,1771330007808,458.70570787,7.517e-05,2]
[405806816,1771330007832,102.54807402,7.517e-05,2]
[405806817,1771330007867,561.25378189,7.517e-05,2]
[405806818,1771330007904,561.25378189,7.517e-05,2]
[405806819,1771330007938,561.25378189,7.517e-05,2]
[405806820,1771330008570,561.25378189,7.517e-05,2]
[405806821,1771330008633,561.25378189,7.517e-05,2]
[405806822,1771330008667,561.25378189,7.517e-05,2]
[405806823,1771330008699,561.25378189,7.517e-05,2]
[405806824,1771330008732,561.25378189,7.517e-05,2]
[405806825,1771330008772,407.43167086,7.517e-05,2]
[405806826,1771330009094,153.82211103,7.517e-05,2]
[405806827,1771330009133,561.25378189,7.517e-05,2]
[405806828,1771330009166,561.25378189,7.517e-05,2]
[405806829,1771330009201,561.25378189,7.517e-05,2]
[405806830,1771330009233,561.25378189,7.517e-05,2]
[405806831,1771330009278,561.25378189,7.517e-05,2]
[405806832,1771330009312,561.25378189,7.517e-05,2]
[405806833,1771330009346,561.25378189,7.517e-05,2]
[405806834,1771330009384,561.25378189,7.517e-05,2]
[405806835,1771330009417,356.15763385,7.517e-05,2]
[405806836,1771330009442,205.09614804,7.517e-05,2]
[405806837,1771330009476,561.25378189,7.517e-05,2]
[405806838,1771330009514,561.25378189,7.517e-05,2]
[405806839,1771330009547,561.25378189,7.517e-05,2]
[405806840,1771330009598,561.25378189,7.517e-05,2]
[405806841,1771330009635,561.25378189,7.517e-05,2]
[405806842,1771330009673,561.25378189,7.517e-05,2]
[405806843,1771330009707,561.25378189,7.517e-05,2]
[405806844,1771330009745,561.25378189,7.517e-05,2]
[405806845,1771330009782,304.88359684,7.517e-05,2]
[405806846,1771330009806,256.37018505,7.517e-05,2]
[405806847,1771330009843,561.25378189,7.517e-05,2]
[405806848,1771330009877,561.25378189,7.517e-05,2]
[405806849,1771330009919,561.25378189,7.517e-05,2]
[405806851,1771330018363,3059.87846928,7.418e-05,2]
[405806852,1771330018391,5000.01,7.418e-05,2]
[405806853,1771330018419,5000.01,7.418e-05,2]
[405806854,1771330018450,5000.01,7.418e-05,2]
[405806855,1771330018485,5000.01,7.418e-05,2]
[405806858,1771330022682,-300.0,7.417e-05,2]
[405806859,1771330026557,172.0,5.2e-07,2]
[405806861,1771330027206,2601.0,7.397e-05,2]
[405806862,1771330027239,2227.01,7.397e-05,2]
[405806863,1771330027263,5000.01,7.397e-05,2]
[405806864,1771330027285,5000.01,7.397e-05,2]
[405806865,1771330027307,5000.01,7.397e-05,2]
[405806866,1771330027328,5000.01,7.397e-05,2]
[405806867,1771330027349,5000.01,7.397e-05,2]
[405806869,1771330031015,152.0,7.417e-05,3]
[405806902,1771330086491,153.0,7.417e-05,3]
[405806905,1771330100164,-25000.0,7.397e-05,2]
[405806906,1771330100929,-25000.0,7.397e-05,2]
[405806907,1771330101648,-941.94,7.397e-05,2]
[405806908,1771330101676,-258.52795508,7.408e-05,2]
[405806909,1771330101706,-23799.53204492,7.418e-05,2]
[405806910,1771330102337,-25000.0,7.418e-05,2]
[405806911,1771330102722,-25000.0,7.418e-05,2]
[405806912,1771330103172,-25000.0,7.418e-05,2]
[405806913,1771330103725,-25000.0,7.418e-05,2]
[405806914,1771330104439,-25000.0,7.418e-05,2]
[405806915,1771330105563,-25000.0,7.418e-05,2]
[405806916,1771330105929,-25000.0,7.418e-05,2]
[405806917,1771330106487,-25000.0,7.418e-05,2]
[405806918,1771330106879,-25000.0,7.418e-05,2]